bitfinex-derivatives/quotes_ETHF0:USTF0_20250624
["timestamp","ask_amount","ask_price","bid_price","bid_amount"]
[1750752581810,4.19200907,2386.3,2385.8,3.2078]
[1750752582114,4.19200907,2386.4,2385.8,3.2078]
[1750752582309,1.3381,2386.2,2385.8,3.2078]
[1750752583907,4.19200907,2386.1,2385.8,3.2078]
[1750752584216,14.14312963,2386.2,2385.5,3.2078]
[1750752584416,4.19200907,2385.9,2385.5,3.2078]
[1750752585016,12.80502963,2385.9,2385.5,3.2078]
[1750752585213,3.2078,2386.4,2385.8,3.2078]
[1750752585516,4.19200907,2386.0,2385.5,3.2078]
[1750752586020,3.2078,2386.4,2385.5,3.2078]
[1750752586314,3.2078,2386.4,2384.7,9.57592155]
[1750752586315,4.19200907,2386.0,2385.8,3.2078]
[1750752586707,12.80502963,2386.0,2385.8,3.2078]
[1750752587018,6.91581084,2385.9,2384.8,4.545]
[1750752587317,4.19200907,2385.1,2384.8,3.2078]
[1750752587512,3.2078,2385.7,2384.8,3.2078]
[1750752587712,4.19200907,2385.1,2384.8,3.2078]
[1750752588014,2.7242302,2385.6,2384.8,3.2078]
[1750752588015,4.19200907,2385.4,2384.8,3.2078]
[1750752588316,3.1218204,2386.0,2384.7,9.57592155]
[1750752588317,5.6211204,2386.3,2385.2,3.2078]
[1750752588517,1.33426344,2386.2,2385.8,3.2078]
[1750752588720,5.52627251,2386.1,2385.8,3.2078]
[1750752588913,3.2078,2386.6,2385.8,3.2078]
[1750752589114,4.19200907,2386.3,2386.2,3.2078]
[1750752589321,16.9970387,2386.6,2386.2,3.2078]
[1750752589522,2.4133204,2387.4,2386.5,3.2078]
[1750752589822,14.59099037,2387.4,2387.1,3.2078]
[1750752590514,3.8829204,2388.2,2387.1,3.2078]
[1750752590515,3.9447,2388.2,2387.1,3.2078]
[1750752590723,3.77690907,2387.9,2387.8,3.2078]
[1750752590931,3.77690907,2387.8,2387.5,3.2078]
[1750752591135,10.8140813,2388.2,2387.5,3.2078]
[1750752591432,3.77690907,2387.9,2387.4,0.59086466]
[1750752591625,0.7369,2388.5,2387.8,3.2078]
[1750752591821,3.77690907,2388.3,2388.1,3.2078]
[1750752592025,1.3215,2388.4,2388.1,3.2078]
[1750752592227,11.5509813,2388.5,2388.1,3.2078]
[1750752592228,5.09840907,2388.2,2388.1,3.2078]
[1750752592731,20.91249037,2388.2,2387.8,3.2078]
[1750752592931,12.1355813,2388.2,2387.8,3.2078]
[1750752593239,3.77690907,2387.9,2387.8,3.2078]
[1750752593735,19.59099037,2387.9,2387.4,3.2078]
[1750752593927,1.3215,2387.8,2387.4,3.2078]
[1750752594128,3.77690907,2387.5,2387.4,3.2078]
[1750752594528,14.59099037,2387.5,2387.4,3.2078]
[1750752597732,1.3215,2387.8,2387.4,3.2078]
[1750752598033,3.77690907,2387.6,2387.4,3.2078]
[1750752598935,1.3476,2387.5,2387.4,3.2078]
[1750752599325,15.93859037,2387.5,2387.4,3.2078]
[1750752600432,3.2078,2388.2,2387.4,3.2078]
[1750752600640,3.77690907,2387.6,2387.1,0.6895]
[1750752600933,1.3476,2388.1,2387.1,0.6895]
[1750752600934,1.3476,2388.1,2387.5,3.2078]
[1750752601232,12.9068813,2388.1,2387.0,0.56525998]
[1750752601440,12.1616813,2388.1,2387.7,3.2078]
[1750752601639,3.77690907,2387.6,2387.4,3.2078]
[1750752601832,3.77690907,2387.5,2387.4,3.2078]
[1750752602037,3.77690907,2387.6,2387.4,3.2078]
[1750752602237,3.77690907,2388.0,2387.4,3.2078]
[1750752602540,0.7369,2388.5,2387.9,3.2078]
[1750752602741,12.8890813,2388.5,2388.3,3.2078]
[1750752603134,3.77690907,2388.4,2388.3,3.2078]
[1750752603439,5.11500907,2388.4,2388.3,3.2078]
[1750752603634,15.92909037,2388.4,2387.7,3.2078]
[1750752603835,3.77690907,2387.9,2387.7,3.2078]
[1750752604235,10.8140813,2387.9,2387.7,3.2078]
[1750752604432,3.77690907,2387.8,2387.7,3.2078]
[1750752604634,1.3381,2388.4,2387.7,3.2078]
[1750752604943,15.3599813,2388.4,2387.8,3.2078]
[1750752605339,3.77690907,2387.9,2387.8,3.2078]
[1750752605635,3.77690907,2387.9,2387.5,3.2078]
[1750752605845,1.3381,2388.4,2387.8,3.2078]
[1750752606045,3.77690907,2388.2,2388.1,3.2078]
[1750752606435,1.3381,2388.4,2388.1,3.2078]
[1750752606639,3.77690907,2388.2,2388.1,3.2078]
[1750752607142,1.3381,2388.4,2388.1,3.2078]
[1750752607340,3.2078,2389.1,2388.1,3.2078]
[1750752607542,4.5774,2389.1,2388.5,3.2078]
[1750752607743,15.3914813,2389.1,2388.5,3.2078]
[1750752607936,3.77690907,2388.6,2388.5,3.2078]
[1750752608444,3.77690907,2388.6,2388.2,0.7272]
[1750752608445,14.59099037,2388.6,2388.2,3.935]
[1750752608646,3.77690907,2388.4,2388.2,0.7272]
[1750752608941,1.3696,2388.5,2388.2,0.7272]
[1750752608942,5.14650907,2388.5,2388.3,3.2078]
[1750752609144,3.77690907,2388.5,2388.3,3.2078]
[1750752609947,1.3696,2389.0,2388.3,3.2078]
[1750752610146,3.77690907,2388.5,2388.3,3.2078]
[1750752610445,3.77690907,2388.7,2388.3,3.2078]
[1750752610640,12.1836813,2389.0,2388.6,3.2078]
[1750752610841,3.77690907,2388.7,2388.6,3.2078]
[1750752611251,19.59099037,2388.7,2388.2,3.2078]
[1750752611545,3.77690907,2388.3,2388.2,3.2078]
[1750752611942,14.59099037,2388.3,2388.2,3.2078]
[1750752612742,14.59099037,2388.3,2387.8,3.2078]
[1750752612946,3.77690907,2388.0,2387.8,3.2078]
[1750752613637,3.77690907,2387.9,2387.3,0.6936]
[1750752613837,3.77690907,2387.4,2387.1,3.9108]
[1750752614037,3.77690907,2387.2,2387.1,3.9108]
[1750752614242,3.77690907,2387.3,2387.1,3.9108]
[1750752614442,3.77690907,2387.3,2387.1,4.6044]
[1750752614638,3.77690907,2387.2,2387.1,3.2078]
[1750752615039,14.59099037,2387.2,2387.1,3.2078]
[1750752615240,0.6865,2387.7,2387.1,3.2078]
[1750752615440,3.77690907,2387.4,2387.1,3.2078]
[1750752615841,0.7156,2388.0,2387.1,3.2078]
[1750752616036,3.77690907,2387.4,2387.1,3.2078]
[1750752616248,3.77690907,2387.6,2387.1,3.2078]
[1750752616446,3.77690907,2387.6,2387.5,3.2078]
[1750752617840,14.59099037,2387.6,2387.5,3.2078]
[1750752618043,3.77690907,2387.6,2387.2,3.2078]
[1750752618646,3.77690907,2387.6,2387.3,0.7503]
[1750752618846,3.2078,2388.1,2387.3,0.7503]
[1750752619047,14.0218813,2388.1,2387.5,3.2078]
[1750752619346,3.77690907,2387.8,2387.5,3.2078]
[1750752620555,3.2078,2388.1,2387.5,3.2078]
[1750752620754,3.77690907,2387.8,2387.3,0.7503]
[1750752621055,3.77690907,2387.8,2387.7,3.2078]
[1750752622158,3.9296,2388.5,2387.7,3.2078]
[1750752622353,3.77690907,2387.9,2387.7,3.2078]
[1750752624056,3.77690907,2387.8,2387.7,3.2078]
[1750752624555,14.59099037,2387.8,2387.7,3.2078]
[1750752624759,3.9296,2388.5,2387.7,3.2078]
[1750752624952,3.77690907,2387.9,2387.7,3.2078]
[1750752626151,3.77690907,2387.8,2387.7,3.2078]
[1750752626354,5.10040907,2387.8,2387.3,3.9581]
[1750752626654,3.77690907,2387.6,2387.3,3.9581]
[1750752626951,1.3235,2387.5,2387.3,3.9581]
[1750752627151,5.10040907,2387.5,2387.3,3.9581]
[1750752627354,1.3235,2387.5,2387.3,3.9581]
[1750752627958,1.3235,2388.0,2387.3,3.9581]
[1750752628164,3.77690907,2387.6,2387.3,3.9581]
[1750752628353,3.77690907,2387.7,2387.3,3.9581]
[1750752628756,1.3235,2388.0,2387.4,1.378]
[1750752629056,3.77690907,2387.7,2387.4,1.378]
[1750752629258,12.1375813,2388.0,2387.4,1.378]
[1750752629457,3.77690907,2387.7,2387.4,1.378]
[1750752629865,1.3235,2388.0,2387.4,1.378]
[1750752630062,3.77690907,2387.7,2387.4,1.378]
[1750752630562,1.3235,2388.0,2387.3,3.9581]
[1750752630763,3.77690907,2387.7,2387.3,3.9581]
[1750752631165,1.3235,2388.0,2387.3,3.9581]
[1750752631363,3.77690907,2387.7,2387.3,3.9581]
[1750752631661,12.1375813,2388.0,2387.3,3.9581]
[1750752631867,3.77690907,2387.6,2387.3,3.9581]
[1750752632066,3.77690907,2387.7,2387.3,3.9581]
[1750752632367,3.77690907,2387.5,2387.3,3.9581]
[1750752632665,3.77690907,2387.6,2387.3,3.9581]
[1750752632865,1.4034,2387.5,2387.3,3.9581]
[1750752633060,3.77690907,2387.4,2387.3,3.2078]
[1750752633469,14.59099037,2387.4,2387.3,3.2078]
[1750752633767,15.99439037,2387.4,2387.3,3.2078]
[1750752634563,0.7223,2387.9,2387.3,3.2078]
[1750752634762,3.77690907,2387.6,2387.3,3.2078]
[1750752634971,1.3606,2387.8,2387.3,3.2078]
[1750752635262,3.77690907,2387.7,2387.3,3.2078]
[1750752635861,5.13750907,2387.7,2387.6,3.2078]
[1750752636066,3.77690907,2387.7,2387.6,3.2078]
[1750752638777,1.3606,2388.0,2387.6,3.2078]
[1750752639076,3.77690907,2387.8,2387.6,3.2078]
[1750752639578,1.3606,2388.0,2387.6,3.2078]
[1750752639777,3.77690907,2387.8,2387.6,3.2078]
[1750752640181,1.3606,2388.0,2387.6,3.2078]
[1750752640375,3.77690907,2387.8,2387.1,2.1452]
[1750752640679,3.2078,2388.4,2387.7,3.2078]
[1750752640979,1.3645,2388.5,2388.3,3.2078]
[1750752641187,2.27190531,2388.5,2388.3,3.2078]
[1750752641476,2.27190531,2388.4,2388.3,3.2078]
[1750752643781,1.3645,2388.7,2388.3,3.2078]
[1750752643990,2.27190531,2388.5,2388.3,3.2078]
[1750752644681,1.3779,2388.4,2388.3,3.2078]
[1750752644881,3.64980531,2388.4,2388.3,3.2078]
[1750752647188,3.2078,2389.2,2388.3,3.2078]
[1750752647379,3.2078,2388.9,2388.3,3.2078]
[1750752647582,2.27190531,2388.4,2387.2,3.2078]
[1750752647890,2.27190531,2387.5,2387.3,3.2078]
[1750752648074,3.65420531,2387.4,2387.3,3.2078]
[1750752648479,1.3823,2387.4,2387.3,3.2078]
[1750752648777,3.2078,2388.0,2387.3,3.2078]
[1750752649082,2.27190531,2387.5,2387.3,3.2078]
[1750752649284,2.27190531,2387.6,2387.3,3.2078]
[1750752649878,2.27190531,2387.5,2387.3,3.2078]
[1750752650079,2.27190531,2387.4,2387.3,3.2078]
[1750752650280,3.70870531,2387.4,2387.3,3.2078]
[1750752650480,14.52278661,2387.4,2387.3,3.2078]
[1750752650777,3.70870531,2387.4,2387.3,3.2078]
[1750752650979,14.52278661,2387.4,2387.3,3.2078]
[1750752651179,2.27190531,2387.1,2386.6,3.2078]
[1750752651383,2.27190531,2386.6,2386.4,0.6959]
[1750752651887,3.2078,2386.9,2386.4,0.6959]
[1750752652078,3.2078,2387.5,2386.6,3.2078]
[1750752652278,2.27190531,2387.2,2386.6,3.2078]
[1750752652788,3.59260531,2387.1,2386.6,3.2078]
[1750752653284,3.2078,2387.5,2386.6,4.5464]
[1750752653488,2.27190531,2387.2,2386.6,4.5464]
[1750752653990,1.3207,2387.4,2386.6,4.5464]
[1750752654192,2.27190531,2387.2,2386.6,4.5464]
[1750752654785,2.27190531,2386.7,2386.5,0.87108793]
[1750752654985,2.27190531,2386.6,2386.4,0.6959]
[1750752655388,1.3207,2386.8,2386.4,0.6959]
[1750752655590,2.27190531,2386.6,2386.4,0.6959]
[1750752655788,2.27190531,2386.6,2386.4,1.52751733]
[1750752656084,3.5567508,2386.6,2386.4,0.6959]
[1750752656287,3.69970531,2386.5,2386.3,3.2078]
[1750752656489,2.27190531,2386.4,2386.3,3.2078]
[1750752656887,1.4278,2386.5,2386.3,3.2078]
[1750752657088,2.27190531,2386.4,2386.3,3.2078]
[1750752657481,1.4278,2386.5,2386.3,3.2078]
[1750752657679,2.27190531,2386.4,2386.3,3.2078]
[1750752658091,2.27190531,2386.4,2386.3,4.04290366]
[1750752658292,7.25645611,2386.4,2386.0,0.7056]
[1750752658492,2.27190531,2386.1,2386.0,0.7056]
[1750752659091,5.82865611,2386.1,2385.7,0.7101]
[1750752659391,2.27190531,2385.8,2385.6,3.2078]
[1750752659585,1.4193,2385.7,2385.6,3.2078]
[1750752659986,1.4193,2385.7,2385.6,4.05846459]
[1750752660387,7.24795611,2385.7,2385.6,0.85066459]
[1750752660585,7.24795611,2385.7,2385.1,3.2078]
[1750752660782,2.27190531,2385.4,2385.1,3.2078]
[1750752661186,2.27190531,2385.3,2385.1,4.07181469]
[1750752661489,3.69120531,2385.3,2385.1,4.07181469]
[1750752661890,2.27190531,2385.2,2385.1,0.86401469]
[1750752662087,0.7183,2386.3,2385.1,5.0]
[1750752662388,1.4479,2386.2,2385.6,3.2078]
[1750752662594,2.27190531,2385.7,2385.3,3.2078]
[1750752662891,2.27190531,2385.5,2385.2,0.6819]
[1750752663192,2.27190531,2385.5,2385.0,4.70573359]
[1750752663193,2.27190531,2385.3,2385.0,4.70573359]
[1750752663395,2.27190531,2385.2,2385.0,4.70573359]
[1750752663587,3.2078,2386.2,2385.0,9.70573359]
[1750752663784,3.71980531,2386.3,2386.0,3.2078]
[1750752664594,1.4479,2386.3,2386.0,3.2078]
[1750752664795,3.71980531,2386.3,2386.0,3.2078]
[1750752664991,2.27190531,2386.1,2386.0,3.2078]
[1750752665186,2.27190531,2386.1,2385.7,3.2078]
[1750752665386,1.4479,2386.3,2385.7,3.2078]
[1750752665588,2.27190531,2386.3,2386.2,3.2078]
[1750752666089,2.27190531,2386.3,2385.9,3.9025]
[1750752666491,2.27190531,2386.2,2385.9,3.9025]
[1750752666995,3.2078,2386.5,2385.9,3.9025]
[1750752667195,2.27190531,2386.2,2385.9,3.9025]
[1750752667591,3.2078,2386.8,2385.9,3.9025]
[1750752667796,3.2078,2386.8,2386.2,3.2078]
[1750752667797,2.27190531,2386.4,2386.2,3.2078]
[1750752669402,0.7094,2387.0,2386.2,3.2078]
[1750752669591,2.1445281,2386.6,2386.2,3.2078]
[1750752670094,2.1445281,2386.4,2386.2,3.2078]
[1750752670998,2.1445281,2386.3,2385.9,3.9025]
[1750752671200,2.1445281,2386.0,2385.1,1.3778]
[1750752671402,2.1445281,2385.5,2385.1,0.7087]
[1750752671787,2.1445281,2385.4,2385.1,0.7087]
[1750752672094,6.7645508,2385.5,2385.1,0.7087]
[1750752672295,2.1445281,2385.2,2385.0,0.83493359]
[1750752672489,6.7645508,2385.5,2384.9,4.79355955]
[1750752672490,2.1445281,2385.1,2384.9,4.79355955]
[1750752672693,2.1445281,2385.0,2384.9,0.86145955]
[1750752672897,2.1445281,2385.0,2384.5,3.2078]
[1750752673096,2.1445281,2384.9,2384.5,3.2078]
[1750752673594,3.2078,2385.2,2384.5,3.2078]
[1750752673800,2.1445281,2384.9,2384.5,3.2078]
[1750752673998,2.1445281,2385.0,2384.6,2.0354]
[1750752674499,3.2078,2385.2,2384.6,2.0354]
[1750752674700,2.1445281,2384.9,2384.6,0.6709]
[1750752674897,2.1445281,2384.7,2384.2,3.8787]
[1750752675199,2.1445281,2384.3,2384.2,4.03881207]
[1750752676203,2.1445281,2384.3,2384.2,0.83101207]
[1750752676401,2.1445281,2384.3,2383.8,3.2078]
[1750752676589,2.1445281,2384.0,2383.7,1.333]
[1750752677097,1.4456,2384.2,2383.7,4.5408]
[1750752677298,2.1445281,2384.1,2383.7,4.5408]
[1750752677899,3.5901281,2384.1,2383.7,4.5408]
[1750752678200,2.1445281,2383.9,2383.7,1.56821384]
[1750752678403,2.1445281,2383.9,2383.4,3.2078]
[1750752679104,3.9227,2384.5,2383.7,3.2078]
[1750752679308,2.1445281,2383.9,2383.4,3.2078]
[1750752679698,2.1445281,2383.9,2383.5,2.1328]
[1750752680199,2.1445281,2383.8,2383.5,0.6935]
[1750752680405,2.1445281,2383.9,2383.7,3.2078]
[1750752680601,3.5567508,2383.9,2383.5,0.6935]
[1750752680803,2.1445281,2383.8,2383.5,0.6935]
[1750752681100,2.1445281,2383.6,2383.4,4.72975474]
[1750752681502,2.1445281,2383.5,2383.4,1.52195474]
[1750752681706,3.2078,2383.9,2383.3,3.8975]
[1750752681900,2.1445281,2383.8,2383.4,2.0309]
[1750752682097,2.1445281,2383.9,2383.6,3.2078]
[1750752682299,3.9227,2384.5,2383.6,3.2078]
[1750752682499,2.1445281,2384.2,2383.9,3.2078]
[1750752682801,2.1445281,2383.9,2383.7,1.3374]
[1750752683006,1.4479,2384.1,2383.4,0.6935]
[1750752683300,2.1445281,2383.8,2383.4,0.6935]
[1750752683795,2.1445281,2383.6,2383.4,0.6935]
[1750752684200,1.4479,2384.1,2383.4,0.6935]
[1750752684401,2.1445281,2383.6,2383.4,0.6935]
[1750752684908,1.4479,2384.1,2383.4,0.6935]
[1750752685104,2.1445281,2383.6,2383.4,0.6935]
[1750752685503,1.4479,2384.1,2383.4,0.6935]
[1750752685709,3.2078,2384.5,2383.5,4.5879]
[1750752685899,2.1445281,2384.0,2383.5,4.5879]
[1750752686101,2.1445281,2383.8,2383.5,4.5879]
[1750752686300,2.1445281,2383.6,2383.5,3.2078]
[1750752686599,1.3763,2384.1,2383.5,3.2078]
[1750752686800,0.04876866,2383.6,2383.5,3.2078]
[1750752687305,1.3763,2384.1,2383.5,3.2078]
[1750752687508,0.04876866,2383.6,2383.5,3.2078]
[1750752687909,1.3763,2384.1,2383.5,8.2078]
[1750752688111,0.04876866,2383.8,2383.5,3.2078]
[1750752688613,1.3763,2384.1,2383.6,1.4519]
[1750752688916,0.04876866,2383.8,2383.5,3.2078]
[1750752689314,1.3763,2384.1,2383.5,4.5655]
[1750752689615,0.04876866,2383.8,2383.5,3.2078]
[1750752689913,0.04876866,2383.7,2383.5,3.2078]
[1750752692811,0.04876866,2383.6,2383.4,1.4185]
[1750752693018,1.39926866,2383.6,2383.3,1.55234075]
[1750752693213,1.39926866,2383.6,2383.2,3.2078]
[1750752693412,0.04876866,2383.6,2383.2,3.2078]
[1750752693711,0.04876866,2383.5,2383.2,3.2078]
[1750752694016,0.04876866,2383.5,2383.2,4.75865756]
[1750752694316,6.7645508,2383.8,2383.2,4.75865756]
[1750752694317,3.2078,2383.8,2383.2,4.75865756]
[1750752694616,0.04876866,2383.5,2383.2,4.75865756]
[1750752695519,1.3505,2383.7,2383.2,4.75865756]
[1750752695717,0.04876866,2383.6,2383.2,4.75865756]
[1750752695919,0.04876866,2383.5,2383.2,4.75865756]
[1750752696421,1.4074,2383.7,2383.2,4.75865756]
[1750752696718,0.04876866,2383.5,2383.2,4.75865756]
[1750752697219,1.4074,2383.7,2383.2,4.75865756]
[1750752697417,0.04876866,2383.5,2383.2,4.75865756]
[1750752697719,0.04876866,2383.4,2383.2,4.75865756]
[1750752698221,1.4074,2383.7,2383.2,4.75865756]
[1750752698418,0.04876866,2383.4,2383.2,4.75865756]
[1750752698919,1.4074,2383.7,2383.2,4.75865756]
[1750752699112,0.04876866,2383.4,2383.2,4.75865756]
[1750752699513,1.4074,2383.7,2383.2,4.75865756]
[1750752699816,0.04876866,2383.4,2383.2,4.75865756]
[1750752700024,0.04876866,2383.3,2383.2,1.55085756]
[1750752700324,1.51216866,2383.3,2383.0,0.6852]
[1750752700524,0.04876866,2383.2,2383.0,0.6852]
[1750752700825,0.04876866,2383.7,2383.0,5.6852]
[1750752701023,4.67,2384.4,2383.6,3.2078]
[1750752701222,0.04876866,2383.9,2383.7,0.6676]
[1750752702019,1.37041675,2383.8,2383.7,0.6676]
[1750752702324,4.57821675,2383.8,2383.1,3.2078]
[1750752702524,0.04876866,2383.2,2383.1,3.2078]
[1750752702717,0.04876866,2383.2,2383.0,1.52318644]
[1750752702921,0.04876866,2383.2,2382.9,1.3735]
[1750752703124,3.5567508,2383.2,2382.9,1.3735]
[1750752703324,0.04876866,2383.0,2382.7,3.2078]
[1750752703525,0.04876866,2382.9,2382.7,3.2078]
[1750752703921,1.4622,2383.1,2382.7,3.2078]
[1750752704225,0.04876866,2382.9,2382.7,4.70263169]
[1750752705626,3.2078,2383.2,2382.7,4.70263169]
[1750752705827,1.32244526,2383.1,2383.0,3.2078]
[1750752706028,1.37121392,2383.1,2382.8,1.3226]
[1750752706226,0.04876866,2383.0,2382.7,4.70263169]
[1750752707232,3.23108004,2383.9,2382.7,9.70263169]
[1750752707426,1.31545315,2383.8,2383.3,3.2078]
[1750752707630,2.70785315,2383.7,2383.3,3.2078]
[1750752707817,3.5567508,2383.8,2383.3,3.2078]
[1750752708019,1.31007903,2383.7,2383.3,3.2078]
[1750752708216,3.5567508,2383.8,2383.3,3.2078]
[1750752708417,3.5567508,2383.8,2383.4,1.4524]
[1750752708624,1.31021578,2383.7,2383.4,1.4524]
[1750752708825,3.5567508,2383.8,2383.4,1.4524]
[1750752709821,1.3924,2384.2,2383.6,3.2078]
[1750752710026,1.31098829,2384.1,2383.6,3.2078]
[1750752710229,2.64188829,2384.0,2383.6,3.2078]
[1750752710432,1.3309,2384.0,2383.6,3.2078]
[1750752710622,8.0954508,2384.0,2383.1,0.7533]
[1750752710829,1.31112387,2383.9,2383.1,0.7533]
[1750752711022,2.64200959,2383.8,2383.1,2.1995]
[1750752711223,1.3309,2383.8,2383.1,2.1995]
[1750752711429,4.8876508,2383.8,2383.1,2.1995]
[1750752712327,3.2078,2383.7,2383.1,0.7533]
[1750752712632,1.3309,2383.6,2383.1,0.7533]
[1750752713025,4.8876508,2383.6,2382.7,4.74413023]
[1750752713225,0.759,2383.5,2382.7,3.2078]
[1750752713425,1.41,2383.4,2383.0,3.2078]
[1750752713922,1.41,2383.4,2382.7,1.52666682]
[1750752713923,3.2078,2384.0,2383.3,3.2078]
[1750752714228,0.759,2384.2,2382.8,1.423]
[1750752714229,3.2078,2383.8,2382.8,1.423]
[1750752714531,1.31089837,2383.7,2383.3,3.2078]
[1750752714733,2.72089837,2383.7,2383.3,3.2078]
[1750752714928,2.72089837,2383.7,2382.8,1.423]
[1750752714929,4.9667508,2383.7,2382.9,3.2078]
[1750752715125,1.31040881,2383.6,2382.8,3.2078]
[1750752715326,1.41,2383.5,2382.8,3.2078]
[1750752715526,1.41,2383.5,2383.1,3.2078]
[1750752715827,4.9667508,2383.5,2383.1,3.2078]
[1750752716929,8.1745508,2383.5,2382.8,3.2078]
[1750752717134,1.31009983,2383.4,2382.8,3.2078]
[1750752717334,1.31009983,2383.4,2382.7,1.50735551]
[1750752717335,3.2078,2383.2,2382.7,1.50735551]
[1750752717633,2.68338111,2383.1,2382.4,3.9586]
[1750752717933,1.374,2383.1,2382.4,3.9586]
[1750752718133,1.374,2383.1,2382.4,5.50169149]
[1750752718134,4.9307508,2383.1,2382.4,5.50169149]
[1750752718320,4.9307508,2383.1,2382.9,3.2078]
[1750752718527,3.5567508,2383.1,2382.9,3.2078]
[1750752718726,1.374,2383.4,2382.9,3.2078]
[1750752719029,3.5567508,2383.4,2383.2,3.2078]
[1750752719539,3.5567508,2383.4,2382.9,3.2078]
[1750752720227,3.5567508,2383.4,2382.6,3.2078]
[1750752720427,3.5567508,2383.4,2382.8,3.2078]
[1750752720628,1.4025,2383.3,2382.8,3.2078]
[1750752721035,3.2078,2383.2,2382.5,3.9503]
[1750752721240,3.5567508,2383.3,2382.9,3.2078]
[1750752721539,5.6318886,2384.3,2383.2,3.2078]
[1750752721831,2.71349561,2384.2,2383.6,3.2078]
[1750752722034,1.31098812,2384.1,2383.7,3.2078]
[1750752722240,4.3253508,2384.2,2383.7,3.2078]
[1750752722633,3.2078,2384.0,2383.1,3.2078]
[1750752722834,1.446,2383.9,2383.1,3.2078]
[1750752723026,3.2078,2383.7,2383.1,3.2078]
[1750752723228,1.446,2383.6,2383.1,3.2078]
[1750752723738,5.0027508,2383.6,2383.1,3.2078]
[1750752723934,5.7713508,2383.6,2383.1,3.2078]
[1750752726035,3.2078,2384.3,2383.4,3.2078]
[1750752726230,1.3635,2384.1,2383.7,3.2078]
[1750752726434,4.9202508,2384.1,2383.7,3.2078]
[1750752728338,3.5567508,2384.1,2383.7,3.2078]
[1750752728730,3.2078,2384.7,2384.0,3.2078]
[1750752728937,3.2078,2384.4,2383.7,3.2078]
[1750752729137,1.4303,2384.3,2383.7,3.2078]
[1750752729344,3.2078,2384.7,2384.0,3.2078]
[1750752729534,2.4240886,2385.3,2382.6,0.7893]
[1750752729535,5.6318886,2385.5,2384.6,3.2078]
[1750752729742,1.5922,2385.9,2385.0,3.2078]
[1750752729940,4.6381,2385.7,2385.0,3.2078]
[1750752730135,4.6381,2385.7,2384.8,0.818]
[1750752730436,4.6381,2385.7,2385.0,3.2078]
[1750752730437,8.1948508,2385.7,2385.0,3.2078]
[1750752731026,8.1948508,2385.7,2385.0,4.74266473]
[1750752731227,4.9870508,2385.7,2385.0,4.74266473]
[1750752731441,4.9870508,2385.7,2385.0,6.20106473]
[1750752732239,3.5567508,2385.7,2385.3,3.2078]
[1750752732833,1.4331,2385.6,2385.3,3.2078]
[1750752733037,2.4240886,2386.9,2385.3,3.2078]
[1750752733038,3.2078,2386.3,2385.4,1.4599]
[1750752733242,3.2078,2386.3,2385.4,5.4494]
[1750752733443,1.4331,2386.2,2385.4,3.9895]
[1750752733740,2.2426,2386.2,2385.4,3.9895]
[1750752733943,5.7993508,2386.2,2385.4,3.9895]
[1750752734145,3.2078,2386.0,2385.4,3.9895]
[1750752734341,1.4331,2385.9,2385.4,3.9895]
[1750752734741,4.9898508,2385.9,2385.4,3.9895]
[1750752735744,3.5567508,2385.9,2385.4,3.9895]
[1750752735944,3.5567508,2385.9,2385.5,1.3311]
[1750752736244,3.5567508,2385.9,2385.4,3.9895]
[1750752736541,3.2078,2386.0,2385.4,3.9895]
[1750752736846,6.7645508,2386.0,2385.4,3.9895]
[1750752737144,1.3695,2385.9,2385.4,3.9895]
[1750752737337,6.7645508,2386.0,2385.5,1.3311]
[1750752737846,3.2078,2386.3,2385.7,3.2078]
[1750752738147,3.5567508,2386.3,2386.0,3.2078]
[1750752738643,3.5567508,2386.3,2385.8,2.093]
[1750752738835,3.5567508,2386.3,2386.0,3.2078]
[1750752739037,3.2078,2386.7,2386.0,3.2078]
[1750752739344,1.3626,2386.6,2386.0,3.2078]
[1750752739842,4.9193508,2386.6,2386.0,3.9651]
[1750752740239,6.4910508,2386.6,2386.0,3.9651]
[1750752743040,3.2078,2386.4,2385.7,3.2078]
[1750752743343,1.4608,2386.3,2385.7,3.2078]
[1750752743847,5.0175508,2386.3,2385.7,3.2078]
[1750752744150,3.2078,2385.8,2385.2,1.6146]
[1750752744342,1.459,2385.7,2385.5,3.2078]
[1750752744650,3.2078,2386.1,2385.5,3.2078]
[1750752744943,1.459,2386.0,2385.5,3.2078]
[1750752745341,3.5567508,2386.0,2385.5,3.2078]
[1750752745535,3.5567508,2386.0,2385.6,1.3588]
[1750752745740,3.5567508,2386.0,2385.5,3.2078]
[1750752746045,1.459,2385.9,2385.5,3.2078]
[1750752746548,5.0157508,2385.9,2385.5,3.2078]
[1750752749849,3.2078,2386.1,2385.5,3.2078]
[1750752750046,3.5567508,2386.1,2385.8,3.2078]
[1750752752744,1.4572,2386.3,2385.8,3.2078]
[1750752752945,5.0139508,2386.3,2385.9,2.1176]
[1750752753246,5.0139508,2386.3,2385.9,0.7707]
[1750752753648,3.2078,2386.9,2386.1,3.2078]
[1750752754049,1.4064,2386.8,2386.1,3.2078]
[1750752754555,4.9631508,2386.8,2386.1,3.2078]
[1750752756161,4.9631508,2386.8,2386.4,3.2078]
[1750752757154,3.5567508,2386.8,2386.4,3.2078]
[1750752757662,1.3763,2386.7,2386.4,3.2078]
[1750752757862,1.3763,2386.7,2386.1,3.2078]
[1750752758160,4.9330508,2386.7,2386.1,3.2078]
[1750752758361,5.7034508,2386.7,2386.1,3.2078]
[1750752758658,1.30695898,2386.6,2386.1,3.2078]
[1750752758855,1.4052,2386.5,2386.1,3.2078]
[1750752759354,4.9619508,2386.5,2386.1,3.2078]
[1750752759556,1.30796198,2386.4,2386.1,3.2078]
[1750752759761,1.4052,2386.3,2386.1,3.2078]
[1750752760155,4.9619508,2386.3,2386.1,3.2078]
[1750752761662,4.9619508,2386.3,2386.0,0.791]
[1750752762665,3.5567508,2386.3,2386.0,0.791]
[1750752762961,2.1086,2386.7,2386.2,3.2078]
[1750752763162,2.1086,2386.7,2386.1,1.4048]
[1750752763163,1.30866215,2386.6,2386.1,1.4048]
[1750752763355,3.5567508,2386.7,2386.5,3.2078]